Cogmind - Beta 14 @@@ ROGUE MODE // 2024.12.07 @ 23:14:22 Player: Ayre223 Result: Destroyed by D-53 Grenadier with Mini Grenade Launcher Performance ------------- Evolutions (0) 0 Regions Visited (2) 400 Robots Destroyed (19) 95 Value Destroyed (413) 413 Prototype IDs (0) 0 Alien Tech Used (0) 0 Bonus (74) 74 TOTAL SCORE: 982 Bonus ------- Follower Combat Kills 74 Cogmind --------- Core Integrity 0/250 Matter 210/300 Energy 86/100 System Corruption 2% Temperature Cool (0) Movement Treading (160) Location -10/Mines Parts ------- > --- POWER (1) -------- (None) > --- PROPULSION (2) --- Light Treads Light Treads > --- UTILITY (2) ------ Medium Storage Unit > --- WEAPON (2) ------- Beamcaster > --- INVENTORY (10) --- Light Treads Improved Heat Sink Targeting Computer EM Pulse Gun EM Pulse Gun Light Assault Rifle Peak State ------------ > --- POWER ------------ Light Nuclear Core > --- PROPULSION ------- Light Treads Light Treads > --- UTILITY ---------- Improved Heat Sink Medium Storage Unit > --- WEAPON ----------- Beamcaster Light Assault Rifle > --- INVENTORY -------- Light Ion Engine Light Treads Light Treads Light Treads Light Treads Improved Heat Sink Targeting Computer EM Pulse Gun EM Pulse Gun Grenade Launcher [Rating: 16] Favorites ----------- Power Light Nuclear Core Engine Ion Engine Power Core Light Nuclear Core Propulsion Light Treads Treads Light Treads Utility Medium Storage Unit Device Heat Sink Storage Medium Storage Unit Weapon Light Assault Rifle Energy Gun Beamcaster Ballistic Gun Light Assault Rifle Launcher Grenade Launcher Build | -11 -10 -10 ------- Run | Yrd Mat Min Slots Evolved . | . . . Power . | . . . Propulsion . | . . . Utility . | . . . Weapon . | . . . Parts Attached 18 | 6 3 9 Power 4 | 1 . 3 Engine 1 | 1 . . Core 3 | . . 3 Reactor . | . . . Propulsion 5 | 2 . 3 Treads 5 | 2 . 3 Leg . | . . . Wheel . | . . . Hover . | . . . Flight . | . . . Utility 4 | 1 2 1 Device 2 | . 1 1 Storage 2 | 1 1 . Processor . | . . . Hackware . | . . . Protection . | . . . Artifact . | . . . Weapon 5 | 2 1 2 Energy Gun 2 | 1 . 1 Energy Cannon . | . . . Ballistic Gun 2 | 1 1 . Ballistic Cannon . | . . . Launcher 1 | . . 1 Special Weapon . | . . . Impact Weapon . | . . . Slashing Weapon . | . . . Piercing Weapon . | . . . Special Melee Weapon . | . . . Unidentified Prototypes . | . . . Parts Lost 7 | . . 7 Power 2 | . . 2 Propulsion 3 | . . 3 Utility 1 | . . 1 Weapon 1 | . . 1 Highest Loss Streak 6 | . . 6 To Critical Strikes . | . . . Average Slot Usage (%) 98 | . 97 99 Engine 6 | . 14 1 Core 7 | . . 12 Treads 28 | . 28 28 Device 13 | . 11 14 Storage 14 | . 14 14 Energy Gun 7 | . 3 8 Ballistic Gun 20 | . 24 17 Peak Build Rating 16 | 6 8 16 Average Rating 10 | 4 6 13 On Entrance 4 | . 6 8 Naked Turns . | . . . Heaviest Build 24 | 14 19 24 Greatest Support 40 | 40 40 40 Greatest Overweight (x) 1 | . . 1 Average Overweight (x) . | . . . Largest Inventory Capacity 10 | 8 10 10 Average Capacity 9 | 6 8 10 Most Carried 10 | 4 10 10 Average Carried 7 | 1 5 9 Final Capacity 10 | 8 10 10 Final Carried 10 | 2 10 6 Class Distribution -------------------- 62% | Mutant 37% | Scavenger-Mutant Dominant Class ---------------- Mutant | -10/Materials Scavenger-Mutant | -10/Mines Resources | -11 -10 -10 ----------- Run | Yrd Mat Min Matter Collected 494 | 260 122 112 Remotely . | . . . Salvage Created 569 | . 256 313 Parts 41 | . 16 25 Haulers Intercepted 1 | . 1 . Recyclers Shooed . | . . . Parts Field Recycled . | . . . Retrieved Matter . | . . . Parts Self-Destructed . | . . . Prevented . | . . . Kills | -11 -10 -10 ------- Run | Yrd Mat Min Combat Hostiles Destroyed 24 | . 7 17 Guns 21 | . 7 14 AOE 3 | . . 3 Classes Destroyed 4 | . 3 1 Hauler 1 | . 1 . Swarmer 10 | . 3 7 Grunt 8 | . 4 4 Assembled 6 | . . 6 Best Kill Streak 6 | . 4 6 Combat Bots Only 6 | . 4 6 Max Kills in Single Turn 2 | . 2 2 Gunslinging 1 | . 1 1 Exploded 1 | . . 1 Melee . | . . . Uniques/NPCs Destroyed . | . . . Combat | -11 -10 -10 -------- Run | Yrd Mat Min Hostile Shots Fired 106 | . 20 86 Missed 27 | . 6 21 Damage Taken 1300 | . 163 1137 Core 254 | . 20 234 Absorbed by Shields . | . . . Core Remaining (%) 100 | 100 . . Volleys Fired 53 | . 23 30 Largest 2 | . 2 2 Hottest 105 | . 40 105 Shots Fired 106 | . 46 60 Gun 98 | . 46 52 Cannon . | . . . Launcher 8 | . . 8 Special . | . . . Kinetic 80 | . 46 34 Thermal 18 | . . 18 Explosive 8 | . . 8 Electromagnetic . | . . . Robot Hit Streak 15 | . 10 15 Robot Miss Streak 5 | . 5 4 Penetration Max . | . . . Secondary Targets 2 | . 1 1 Max Gunslinging Chain 1 | . 1 1 Shots Hit Robots 64 | . 28 36 Core Hits 43 | . 16 27 Critical Kills 1 | . . 1 Critical Parts Destroyed . | . . . Critical Strikes 3 | . . 3 Burn 2 | . . 2 Destroy 1 | . . 1 Melee Attacks . | . . . Impact . | . . . Slashing . | . . . Piercing . | . . . Sneak Attacks . | . . . Combat Hostiles . | . . . Follow-up Attacks . | . . . Damage Inflicted 1161 | . 277 884 Guns 747 | . 277 470 Cannons . | . . . Explosions 414 | . . 414 Melee . | . . . Ramming . | . . . Kinetic 455 | . 277 178 Thermal 292 | . . 292 Explosive 414 | . . 414 Electromagnetic . | . . . Impact . | . . . Slashing . | . . . Piercing . | . . . Highest Corruption 2 | . 1 2 Average Corruption 1 | . 1 1 Corruption Purged . | . . . Corruption Blocked . | . . . Effects 7 | . . 7 Message Errors 1 | . . 1 Matter Fused 1 | . . 1 Heat Flow Errors 1 | . . 1 Data Loss (minor) 2 | . . 2 Data Loss (major) 1 | . . 1 Misfires 1 | . . 1 Overload Shots . | . . . Overflow Damage . | . . . Projectiles . | . . . Explosions . | . . . Melee . | . . . Knockbacks . | . . . Impact . | . . . Kinetic . | . . . Secondary . | . . . Self-Inflicted Damage 25 | . . 25 Shots 2 | . . 2 Rammed . | . . . Targets Rammed . | . . . Kicked . | . . . Crushed . | . . . Highest Temperature 182 | . . 182 Average Temperature 35 | . . 35 Received Heat Transfer 225 | . 78 147 Siege Activations . | . . . Robots Corrupted . | . . . Combat Hostiles . | . . . Parts Fried . | . . . Impact Corruptions . | . . . Robots Melted . | . . . Combat Hostiles . | . . . Parts Melted . | . . . Heat Transferred 666 | . . 666 Parts Sabotaged . | . . . Parts Stolen . | . . . Parts Stripped . | . . . Power Chain Reactions . | . . . Alert | -11 -10 -10 ------- Run | Yrd Mat Min Peak Influence 284 | . 282 284 Initial 31 | . . 31 Average 166 | . 139 200 Maximum Alert Level 1 | . 1 1 Low Security (%) 54 | 100 53 50 Level 1 45 | . 46 49 Level 2 . | . . . Level 3 . | . . . Level 4 . | . . . Level 5 . | . . . High Security . | . . . Max Security . | . . . Squads Dispatched 1 | . 1 . Investigation . | . . . Extermination . | . . . Reinforcement 1 | . 1 . Assault . | . . . Garrison . | . . . Intercept . | . . . Searches Triggered . | . . . Construction Impeded . | . . . Haulers Reinforced . | . . . Active Scanning Responses . | . . . Cargo Convoy Interrupts . | . . . Stealth | -11 -10 -10 --------- Run | Yrd Mat Min Distress Signals 2 | . 2 . Communications Jammed . | . . . Distress Signals . | . . . Times Spotted 51 | . 16 35 Peak Tracking Total 14 | . 4 14 Tactical Retreats 1 | . 1 . Traps | -11 -10 -10 ------- Run | Yrd Mat Min Traps Triggered 1 | . 1 . Indirectly . | . . . Trap Hack Attempts . | . . . Triggered . | . . . Disarmed . | . . . Reprogrammed . | . . . Reused . | . . . Traps Extracted . | . . . Installed . | . . . Triggered . | . . . Machines | -11 -10 -10 ---------- Run | Yrd Mat Min Machines Disabled . | . . . Max in Single Turn . | . . . Machines Repaired . | . . . Machines Dismantled . | . . . Machines Sabotaged . | . . . Overloaded Fab Kills . | . . . Hacking | -11 -10 -10 --------- Run | Yrd Mat Min Machines Accessed . | . . . Terminals . | . . . Fabricators . | . . . Repair Stations . | . . . Recycling Units . | . . . Scanalyzers . | . . . Garrison Access . | . . . Total Hacks . | . . . Successful . | . . . Failed . | . . . Catastrophic . | . . . Database Lockouts . | . . . Manual . | . . . Terminals . | . . . Fabricators . | . . . Repair Stations . | . . . Recycling Units . | . . . Scanalyzers . | . . . Garrison Access . | . . . Terminal Hacks . | . . . Fabricator Hacks . | . . . Repair Station Hacks . | . . . Recycling Unit Hacks . | . . . Scanalyzer . | . . . Garrison Access Hacks . | . . . Unauthorized Hacks . | . . . Terminals . | . . . Fabricators . | . . . Repair Stations . | . . . Recycling Units . | . . . Scanalyzers . | . . . Garrison Access . | . . . Data Cores Recovered . | . . . Used . | . . . Hacking Detections . | . . . Full Trace Events . | . . . Feedback Events . | . . . Feedback Blocked . | . . . Robot Schematics Acquired . | . . . Robots Built . | . . . Authchips . | . . . Time . | . . . Total Robot Build Rating . | . . . Part Schematics Acquired . | . . . Parts Built . | . . . Authchips . | . . . Time . | . . . Total Part Build Rating . | . . . Parts Repaired . | . . . Time . | . . . Parts Recycled . | . . . Recycled Matter . | . . . Retrieved Matter . | . . . Retrieved Components . | . . . Parts Scanalyzed . | . . . Part Schematics Acquired . | . . . Parts Damaged . | . . . Bothacking | -11 -10 -10 ------------ Run | Yrd Mat Min Used RIF Installer . | . . . Robots Hacked . | . . . Non-combat . | . . . Combat . | . . . Robot Hacks Applied . | . . . Relay Couplers Released . | . . . Fabnet Peak Effective % . | . . . Robots Rewired . | . . . Allies Hacked . | . . . Hacks Repelled . | . . . Allies | -11 -10 -10 -------- Run | Yrd Mat Min Total Allies 2 | . . 2 Largest Group 2 | . . 2 Highest-Rated Group 43 | . . 43 Highest-Rated Ally 31 | . . 31 Total Orders . | . . . Ally Attacks 10 | . . 10 Total Damage 147 | . . 147 Kills 4 | . . 4 Allies Corrupted . | . . . Allies Melted . | . . . Intel | -11 -10 -10 ------- Run | Yrd Mat Min Robot Analysis Total . | . . . Derelict Logs Recovered . | . . . Drone Launches . | . . . Drone Recoveries . | . . . Exploration | -11 -10 -10 ------------- Run | Yrd Mat Min Turns Passed 1106 | 65 402 639 Spaces Moved 556 | 42 195 319 Core 14 | 14 . . Treads 542 | 28 195 319 Legs . | . . . Wheels . | . . . Hover . | . . . Flight . | . . . Fastest Speed 50 | 50 160 160 Average Speed 157 | 123 160 160 Slowest Speed 240 | 160 160 240 Overloaded Moves . | . . . Propulsion Burnouts . | . . . Robots Hopped . | . . . Cave-ins Triggered . | . . . Exploration Rate (%) 37 | 4 46 63 Regions Visited 2 Branch Regions 1 Pre-discovered Areas . | . . . Known Exits Taken . | . . . Unknown Exits Taken 2 | 1 1 . Scrap Searched . | . . . Spaces Dug . | . . . Terrain Destroyed 47 | . . 47 Melee . | . . . Projectile . | . . . AOE 47 | . . 47 Terrain Rammed . | . . . Walls Destroyed . | . . . Machines Disabled . | . . . Actions | -11 -10 -10 --------- Run | Yrd Mat Min Total 692 | 55 243 394 Wait 42 | . 12 30 Move 554 | 41 194 319 Hop . | . . . Pick Up 19 | 8 10 1 Fast Attach 1 | . . 1 Attach 11 | 6 1 4 Detach . | . . . Swap 6 | . 2 4 Drop 6 | . 1 5 Fire 53 | . 23 30 Melee . | . . . Ram . | . . . Kick . | . . . Crush . | . . . Escape Stasis . | . . . Rewire . | . . . Trap . | . . . Miscellaneous . | . . . Route ------- -11/Scrapyard -10/Materials (discovered 2 exits: [*Mat] / [*Min]) -10/Mines (discovered 1 exit: [*Mat]) History --------- Turn | Location | Event 10 | -11/Scrapyard | Discovered new exit (range 15) 66 | -11/Scrapyard | Entered Materials 309 | -10/Materials | Build established: Mutant 312 | -10/Materials | Discovered new exit (range 8) 430 | -10/Materials | Discovered new exit (range 12) 468 | -10/Materials | Entered Mines 547 | -10/Mines | Discovered new exit (range 10) 1005 | -10/Mines | Build established: Scavenger-Mutant 1046 | -10/Mines | Assembled infested the area 1094 | -10/Mines | Core integrity fell below 50% 1106 | -10/Mines | Core integrity fell below 20% 1107 | -10/Mines | Destroyed by D-53 Grenadier with Mini Grenade Launcher Last Messages --------------- 01094_ Destroyed Asb. Hover Unit. 01096_ Grenade Launcher destroyed. 01099_ The unstable cave ceiling collapses. 01102_ Lgt. Treads destroyed. 01102_ C-30 ARC bursts open, deploying its payload. 01102_ D-53 Grenadier unfolds itself. 01103_ Lgt. Treads destroyed. 01105_ Imp. Heat Sink destroyed. 01105_ System corrupted by crushing effect (+1). 01105_ Lgt. Nuclear Core destroyed. 01105_ as-04317 destroyed. 01105_ U-05 Engineer destroyed. 01105_ as-35005 destroyed. 01105_ as-07813 destroyed. 01105_ as-84843 destroyed. 01105_ as-96882 destroyed. 01105_ as-85692 destroyed. 01107_ as-43278 destroyed. 01107_ as-82754 destroyed. Map ----- +----------------------------------------------------+ | | | | | | | | | | | | | | | | | | | | | ?????????????????????????????????????????????????? | | ?????????????????????????????????????????????????? | | ?????????######?????####?????????????????????????? | | ????????## ####### ####??????????????????????? | | ???????## ##?????????????????????? | | ??????## """ #?????????????????????? | | ?????## """ #### #?????????????????????? | | ?????# """ #?## ##??????"??????????????? | | ?????# ##?# ##????? ??????????????? | | ?????## ## ##??# ##???"""??????????????? | | #?????## ## ##### ##? """ "????????????? | | ###???# % ## """ ?????????????? | | # #???# ####### dd ???????????????? | | #???# #?????## #?????????????????? | | ##?### ###????## #?????????????????? | | ##?## ###???### @ ##?????##?????????? | | #??# ##????## = ###? % #### ????? | | #??## ##????# # ????? | | #???## #????# #??????? | | #????## #????# ## a #??????? | | #?????## ##????# ###a a #??????? | | ##?????## ##?????### #?## # #??????? | | ######## ##????????# #??# #??????? | | * ##?????????#s #??### ##??????? | | # ##### #?????????? ?????# #???????? | | ## #???#[=#?????????? s ?????# #???????? | | #### #??##%!###???????? "??????? #???????? | | #?## ####%*= ##??????? ""??????? #???????? | | ?## ## #??????? "???????? #???????? | | ## #??????? ????????? ##???????? | | """ ##??????? ??????????###% ???????? | | """ ###???????????????????????%=###??????? | | #### """ ##??????????????????????????=#????????? | | ???## #??????????????????????????? #????????? | | ????## #????????????????????????????#????????? | | ?????## ##?????????????????????????????????????? | | ??????### #??????????????????????????????????????? | | ????????# #??????????????????????????????????????? | | ????????# ??????????????????????????????????????? | | ?????????#?#?????????????????????????????????????? | +----------------------------------------------------+ Best States ------------- Heat Dissipation 39 Energy Generation 14 Energy Capacity 250 Matter Stores 300 Matter Capacity 300 Sight Range 16 Terrain Scan Density 10 Evasion (%) 50 Recoil Reduction 2 Item Schematics ----------------- None Robot Schematics ------------------ None Fabricated ------------ Nothing Alien Tech Used ----------------- None Achievements -------------- None Challenges ------------ None Game ------ Seed UtilityFieldRefractor Manual? 0 Play Time 00:08:31 Cumulative 10.5 hours Start 2024.12.07 @ 23:06:48 End 2024.12.07 @ 23:14:22 Sessions 1 Manual Loads 0 Difficulty Rogue Special Mode None Game No. 16 Rogue 16 Adventurer 0 Explorer 0 Win Type - Total 0 Types 0/0/0/0/0/0/0/0/0 Lore% 9 Gallery% 20 Achievement% 17 Wizard Run 0 Options --------- Layout 1 ASCII 0 Keyboard 0 Movement Mouse Keybinds 0 Fullscreen 1 Font 24/Smallcaps Map View 50x35 Zoom Use 0% Tactical HUD 1 Map Filters NONE Filters NONE Steam 1 RUN: 717d95c9-51b8-45b6-bced-b0d4ad13a8b8